lending/lending_fUSD_20251116
["ID","MTS","AMOUNT","RATE_DAILY","PERIOD"]
[394103981,1763284244226,-227.373261,0.0002819,7]
[394103982,1763284244235,-151.0,0.0002819,7]
[394103983,1763284244246,-151.0,0.0002819,7]
[394103984,1763284244259,-151.0,0.0002819,7]
[394103985,1763284244268,-151.0,0.0002819,7]
[394103986,1763284244278,-329.406227,0.0002819,7]
[394103987,1763284244287,-329.406227,0.0002819,7]
[394103988,1763284244296,-329.406227,0.0002819,7]
[394103989,1763284244305,-329.406227,0.0002819,7]
[394103990,1763284244314,-157.014294,0.0002819,7]
[394103991,1763284244323,-151.0,0.0002819,7]
[394103992,1763284244332,-151.0,0.0002819,7]
[394103993,1763284244341,-754.641947,0.0002819,7]
[394103994,1763284244351,-754.641947,0.0002819,7]
[394103995,1763284244360,-754.641947,0.0002819,7]
[394103996,1763284244369,-754.641947,0.0002819,7]
[394103997,1763284244379,-151.0,0.0002819,7]
[394103998,1763284244389,-151.0,0.0002819,7]
[394103999,1763284244398,-151.0,0.0002819,7]
[394104000,1763284244408,-151.0,0.0002819,7]
[394104001,1763284244419,-151.0,0.0002819,7]
[394104002,1763284244436,-151.0,0.0002819,7]
[394104003,1763284244457,-151.0,0.0002819,7]
[394104004,1763284244467,-151.0,0.0002819,7]
[394104005,1763284244477,-151.0,0.0002819,7]
[394104006,1763284244486,-151.0,0.0002819,7]
[394104007,1763284244495,-151.0,0.0002819,7]
[394104008,1763284244504,-151.0,0.0002819,7]
[394104009,1763284244513,-151.0,0.0002819,7]
[394104010,1763284244522,-151.0,0.0002819,7]
[394104011,1763284244531,-151.0,0.0002819,7]
[394104012,1763284244540,-151.0,0.0002819,7]
[394104013,1763284244550,-151.0,0.0002819,7]
[394104014,1763284244559,-151.0,0.0002819,7]
[394104015,1763284244567,-151.0,0.0002819,7]
[394104016,1763284244576,-151.0,0.0002819,7]
[394104017,1763284244586,-151.0,0.0002819,7]
[394104018,1763284244595,-151.0,0.0002819,7]
[394104019,1763284244604,-261.369398,0.0002819,7]
[394104020,1763284244613,-151.0,0.0002819,7]
[394104021,1763284244622,-151.0,0.0002819,7]
[394104022,1763284244631,-151.0,0.0002819,7]
[394104023,1763284244640,-166.116633,0.0002819,7]
[394104024,1763284244649,-151.0,0.0002819,7]
[394104025,1763284244659,-334.897074,0.0002819,7]
[394104026,1763284244668,-151.0,0.0002819,7]
[394104027,1763284244677,-151.0,0.0002819,7]
[394104028,1763284244686,-334.897074,0.0002819,7]
[394104029,1763284244696,-334.897074,0.0002819,7]
[394104030,1763284244705,-334.897074,0.0002819,7]
[394104031,1763284244714,-151.0,0.0002819,7]
[394104032,1763284244723,-186.668261,0.0002819,7]
[394104033,1763284244732,-151.0,0.0002819,7]
[394104034,1763284244741,-186.668261,0.0002819,7]
[394104035,1763284244751,-186.668261,0.0002819,7]
[394104036,1763284244759,-151.0,0.0002819,7]
[394104037,1763284244768,-151.755537,0.0002819,7]
[394104038,1763284244778,-151.0,0.0002819,7]
[394104039,1763284244787,-186.668261,0.0002819,7]
[394104040,1763284244796,-151.755537,0.0002819,7]
[394104041,1763284244805,-151.755537,0.0002819,7]
[394104042,1763284244814,-151.0,0.0002819,7]
[394104043,1763284244823,-151.0,0.0002819,7]
[394104044,1763284244832,-151.0,0.0002819,7]
[394104045,1763284244841,-151.0,0.0002819,7]
[394104046,1763284244850,-151.755537,0.0002819,7]
[394104047,1763284244859,-151.0,0.0002819,7]
[394104048,1763284244869,-151.0,0.0002819,7]
[394104049,1763284244879,-151.0,0.0002819,7]
[394104050,1763284244888,-151.0,0.0002819,7]
[394104051,1763284244897,-151.0,0.0002819,7]
[394104052,1763284244906,-151.0,0.0002819,7]
[394104053,1763284244915,-479.06402154,0.000282,7]
[394104054,1763284244925,-163.1162553,0.00028222,2]
[394104055,1763284244934,-2000.0,0.000284,2]
[394104056,1763284244943,-2000.0,0.000284,2]
[394104057,1763284244953,-230.56193462,0.00028478,30]
[394104058,1763284244962,-575.0,0.00028538,2]
[394104059,1763284244971,-608.0,0.00028538,2]
[394104060,1763284244980,-821.0,0.00028538,2]
[394104061,1763284244989,-1599.0,0.00028538,2]
[394104062,1763284244998,-793.0,0.00028538,2]
[394104063,1763284245007,-1275.0,0.00028538,2]
[394104064,1763284245017,-1190.0,0.00028538,2]
[394104065,1763284245026,-907.0,0.00028538,2]
[394104066,1763284245035,-1604.0,0.00028538,2]
[394104067,1763284245044,-152.0,0.00028712,3]
[394104068,1763284245053,-150.0,0.00028766,2]
[394104069,1763284245063,-150.0,0.00028766,2]
[394104070,1763284245072,-150.0,0.00028766,2]
[394104071,1763284245082,-150.0,0.00028766,2]
[394104072,1763284245091,-3430.0,0.00028766,2]
[394104073,1763284245101,-1047.79,0.000288,14]
[394104074,1763284245110,-6819.14766569,0.00029105,2]
[394104075,1763284245119,-500.19183287,0.00029175,5]
[394104076,1763284245129,-162.47544706,0.00029175,5]
[394104077,1763284245138,-156.40103657,0.00029179,10]
[394104078,1763284245149,-156.57,0.0002918,2]
[394104079,1763284245158,-151.0,0.0002919,7]
[394104080,1763284245168,-151.811139,0.0002919,7]
[394104081,1763284245177,-151.0,0.0002919,7]
[394104082,1763284245187,-151.0,0.0002919,7]
[394104083,1763284245195,-151.0,0.0002919,7]
[394104084,1763284245205,-151.0,0.0002919,7]
[394104085,1763284245215,-249.696658,0.0002919,7]
[394104086,1763284245223,-151.0,0.0002919,7]
[394104087,1763284245233,-249.696658,0.0002919,7]
[394104088,1763284245242,-249.696658,0.0002919,7]
[394104089,1763284245255,-249.696658,0.0002919,7]
[394104090,1763284245264,-151.0,0.0002919,7]
[394104091,1763284245273,-151.0,0.0002919,7]
[394104092,1763284245283,-151.0,0.0002919,7]
[394104093,1763284245292,-151.0,0.0002919,7]
[394104094,1763284245302,-151.0,0.0002919,7]
[394104095,1763284245313,-165.401043,0.0002919,7]
[394104096,1763284245323,-160.155288,0.0002919,7]
[394104097,1763284245333,-151.0,0.0002919,7]
[394104098,1763284245342,-160.155288,0.0002919,7]
[394104099,1763284245351,-151.0,0.0002919,7]
[394104100,1763284245360,-151.0,0.0002919,7]
[394104101,1763284245369,-160.155288,0.0002919,7]
[394104102,1763284245379,-151.0,0.0002919,7]
[394104103,1763284245388,-160.155288,0.0002919,7]
[394104104,1763284245397,-151.0,0.0002919,7]
[394104105,1763284245406,-151.0,0.0002919,7]
[394104106,1763284245415,-151.0,0.0002919,7]
[394104107,1763284245425,-151.0,0.0002919,7]
[394104108,1763284245434,-151.0,0.0002919,7]
[394104109,1763284245443,-151.0,0.0002919,7]
[394104110,1763284245453,-151.0,0.0002919,7]
[394104111,1763284245462,-151.0,0.0002919,7]
[394104112,1763284245471,-307.712402,0.0002919,7]
[394104113,1763284245480,-151.0,0.0002919,7]
[394104114,1763284245490,-307.712402,0.0002919,7]
[394104115,1763284245500,-151.0,0.0002919,7]
[394104116,1763284245509,-307.712402,0.0002919,7]
[394104117,1763284245518,-307.712402,0.0002919,7]
[394104118,1763284245528,-151.0,0.0002919,7]
[394104119,1763284245537,-151.0,0.0002919,7]
[394104120,1763284245547,-151.0,0.0002919,7]
[394104121,1763284245557,-151.0,0.0002919,7]
[394104122,1763284245566,-184.808736,0.0002919,7]
[394104123,1763284245576,-159.659107,0.0002919,7]
[394104124,1763284245585,-151.0,0.0002919,7]
[394104125,1763284245594,-163.405208,0.0002919,7]
[394104126,1763284245603,-151.0,0.0002919,7]
[394104127,1763284245613,-151.0,0.0002919,7]
[394104128,1763284245623,-151.0,0.0002919,7]
[394104129,1763284245632,-225.032242,0.0002919,7]
[394104130,1763284245641,-166.199414,0.0002919,7]
[394104131,1763284245650,-151.0,0.0002919,7]
[394104132,1763284245659,-151.0,0.0002919,7]
[394104133,1763284245669,-151.0,0.0002919,7]
[394104134,1763284245678,-151.0,0.0002919,7]
[394104135,1763284245688,-151.0,0.0002919,7]
[394104136,1763284245698,-151.0,0.000292,7]
[394104137,1763284245707,-151.0,0.000292,7]
[394104138,1763284245716,-151.0,0.000292,7]
[394104139,1763284245726,-151.0,0.000292,7]
[394104140,1763284245735,-151.0,0.000292,7]
[394104141,1763284245744,-151.0,0.000292,7]
[394104142,1763284245753,-151.0,0.000292,7]
[394104143,1763284245763,-165.666462,0.000292,7]
[394104144,1763284245773,-151.0,0.000292,7]
[394104145,1763284245782,-151.0,0.000292,7]
[394104146,1763284245791,-151.0,0.000292,7]
[394104147,1763284245801,-651.99,0.000292,7]
[394104148,1763284245810,-4937.00434979,0.00029234,2]
[394104149,1763284245821,-150.79490104,0.00029441,5]
[394104150,1763284245831,-157.19997091,0.00029441,5]
[394104151,1763284245840,-357.6762453,0.00029527,2]
[394104152,1763284245849,-1096.70275257,0.00029534,5]
[394104153,1763284245858,-1042.37262221,0.00029534,5]
[394104154,1763284245868,-1112.37869153,0.00029534,5]
[394104155,1763284245877,-1145.42559291,0.00029534,5]
[394104156,1763284245886,-1111.54272152,0.00029534,5]
[394104157,1763284245896,-1129.75581796,0.00029534,5]
[394104158,1763284245906,-1048.28434049,0.00029534,5]
[394104159,1763284245915,-1140.88121267,0.00029534,5]
[394104160,1763284245924,-1134.38888372,0.00029534,5]
[394104161,1763284245933,-1066.95905871,0.00029534,5]
[394104162,1763284245943,-1120.19878658,0.00029534,5]
[394104163,1763284245952,-1697.02709206,0.00029534,5]
[394104164,1763284245961,-150.0,0.00029673,5]
[394104165,1763284245971,-152.793394,0.000297,7]
[394104166,1763284245980,-213.900215,0.000297,7]
[394104167,1763284245989,-213.900215,0.000297,7]
[394104168,1763284245998,-213.900215,0.000297,7]
[394104169,1763284246007,-151.0,0.000297,7]
[394104170,1763284246016,-213.900215,0.000297,7]
[394104171,1763284246026,-151.0,0.000297,7]
[394104172,1763284246036,-151.0,0.000297,7]
[394104173,1763284246045,-151.0,0.000297,7]
[394104174,1763284246054,-154.259977,0.000297,7]
[394104175,1763284246064,-151.0,0.000297,7]
[394104176,1763284246073,-151.0,0.000297,7]
[394104177,1763284246082,-151.0,0.000297,7]
[394104178,1763284246091,-151.0,0.000297,7]
[394104179,1763284246100,-151.0,0.000297,7]
[394104180,1763284246110,-151.0,0.000297,7]
[394104181,1763284246119,-156.089534,0.000297,7]
[394104182,1763284246129,-151.0,0.000299,7]
[394104183,1763284246138,-151.0,0.000299,7]
[394104184,1763284246148,-151.0,0.000299,7]
[394104185,1763284246157,-161.211889,0.000299,7]
[394104186,1763284246167,-158.371195,0.000299,7]
[394104187,1763284246176,-153.714524,0.000299,7]
[394104188,1763284246185,-151.0,0.000299,7]
[394104189,1763284246195,-151.0,0.000299,7]
[394104190,1763284246346,-151.0,0.000299,7]
[394104191,1763284246356,-183.398054,0.000299,7]
[394104192,1763284246366,-155.471458,0.000299,7]
[394104193,1763284246376,-152.0,0.00029912,4]
[394104194,1763284246385,-193.66292527,0.00029985,15]
[394104195,1763284246394,-150.0,0.00029999,39]
[394104196,1763284246403,-150.0,0.00029999,22]
[394104197,1763284246412,-6034.13355087,0.0003,3]
[394104198,1763284246421,-587.35,0.0003,7]
[394104199,1763284246430,-532.0,0.0003,14]
[394104200,1763284246440,-184.66,0.0003,22]
[394104201,1763284246449,-168.1,0.000302,7]
[394104202,1763284246458,-151.0,0.000302,31]
[394104203,1763284246468,-151.0,0.000302,31]
[394104204,1763284246477,-160.745587,0.000302,31]
[394104205,1763284246486,-250.0,0.00030221,5]
[394104206,1763284246495,-980.31175026,0.00030289,2]
[394104207,1763284246504,-151.0,0.00030294,2]
[394104208,1763284246514,-339.14,0.00030391,2]
[394104209,1763284246523,-532.0,0.00030411,14]
[394104210,1763284246533,-651.99,0.000305,7]
[394104211,1763284246543,-30631.96178264,0.00030685,30]
[394104212,1763284246910,-800.07667085,0.00030685,30]
[394104213,1763284246921,-2380.09313555,0.00030685,30]
[394104214,1763284247083,-500.0,0.00022538,2]
[394104215,1763284247097,-277.05,0.00022,2]
[394104216,1763284247107,-3747.7795,0.00022538,2]
[394104218,1763284295845,280.046,0.00015301,2]
[394104227,1763284732091,150.82,0.00026516,120]
[394104228,1763284732435,150.82,0.00028927,120]
[394104234,1763284895885,224.037,0.00015301,2]
[394104268,1763285266647,1074.8674,0.00015513,2]
[394104515,1763285350340,150.0,0.00028926,120]
[394104518,1763285416225,1651.61096313,0.00015513,2]
[394104519,1763285416249,10000.01,0.00015513,2]
[394104520,1763285416275,10000.01,0.00015513,2]
[394104521,1763285416301,10000.01,0.00015513,2]
[394104522,1763285416326,10000.01,0.00015513,2]
[394104523,1763285416351,10000.01,0.00015513,2]
[394104524,1763285416376,10000.01,0.00015513,2]
[394104525,1763285416400,10000.01,0.00015513,2]
[394104526,1763285416425,10000.01,0.00015513,2]
[394104527,1763285416450,10000.01,0.00015513,2]
[394104528,1763285423741,-6231.75481957,0.00015513,2]
[394104529,1763285423771,-10000.01,0.00015513,2]
[394104530,1763285425632,-10000.01,0.00015513,2]
[394104531,1763285425730,-10000.01,0.00015513,2]
[394104532,1763285425847,-10000.01,0.00015513,2]
[394104533,1763285425950,-10000.01,0.00015513,2]
[394104534,1763285426094,-10000.01,0.00015513,2]
[394104535,1763285426223,-10000.01,0.00015513,2]
[394104536,1763285426349,-10000.01,0.00015513,2]
[394104537,1763285426502,-10000.01,0.00015513,2]
[394104539,1763285428650,-10000.01,0.00015513,2]
[394104540,1763285429060,-10000.01,0.00015513,2]
[394104547,1763285431897,-10000.01,0.00015513,2]
[394104548,1763285432013,-27217.45508054,0.00015513,2]
[394104549,1763285432025,-1077.04273091,0.00015513,2]
[394104552,1763285432584,-10000.01,0.00015513,2]
[394104553,1763285432615,-10000.01,0.00015513,2]
[394104554,1763285432784,-10000.01,0.00015513,2]
[394104555,1763285432900,-10000.01,0.00015513,2]
[394104556,1763285433036,-10000.01,0.00015513,2]
[394104557,1763285433171,-10000.01,0.00015513,2]
[394104558,1763285433326,-500.0,0.00015512,2]
[394104559,1763285433356,-500.0,0.00015512,2]
[394104560,1763285433386,-500.0,0.00015512,2]
[394104561,1763285433416,-500.0,0.00015512,2]
[394104562,1763285433443,-628.43818476,0.00015512,2]
[394104563,1763285433979,-500.0,0.00015512,2]
[394104564,1763285433988,-500.0,0.00015512,2]
[394104565,1763285433998,-500.0,0.00015512,2]
[394104566,1763285434008,-500.0,0.00015512,2]
[394104567,1763285434017,-500.0,0.00015512,2]
[394104568,1763285434027,-500.0,0.00015512,2]
[394104569,1763285434036,-1743.13363048,0.00015513,2]
[394104570,1763285434817,-500.0,0.00015512,2]
[394104571,1763285434850,-500.0,0.00015512,2]
[394104572,1763285434882,-500.0,0.00015512,2]
[394104573,1763285434915,-500.0,0.00015512,2]
[394104574,1763285434948,-500.0,0.00015512,2]
[394104575,1763285434981,-500.0,0.00015512,2]
[394104576,1763285435016,-500.0,0.00015512,2]
[394104577,1763285435048,-500.0,0.00015512,2]
[394104578,1763285435078,-500.0,0.00015512,2]
[394104579,1763285435108,-500.0,0.00015512,2]
[394104580,1763285435231,-500.0,0.00015512,2]
[394104581,1763285435263,-500.0,0.00015512,2]
[394104582,1763285435295,-500.0,0.00015512,2]
[394104583,1763285435327,-500.0,0.00015512,2]
[394104584,1763285435359,-500.0,0.00015512,2]
[394104585,1763285435391,-500.0,0.00015512,2]
[394104586,1763285435421,-500.0,0.00015512,2]
[394104587,1763285435452,-500.0,0.00015512,2]
[394104588,1763285435484,-500.0,0.00015512,2]
[394104589,1763285435520,-500.0,0.00015512,2]
[394104590,1763285435847,-0.01,0.00015512,2]
[394104591,1763285435865,-0.01,0.00015512,2]
[394104592,1763285437775,-248.62424734,0.00015503,2]
[394104593,1763285437787,-499.98,0.00015512,2]
[394104594,1763285437796,-500.0,0.00015512,2]
[394104595,1763285437805,-500.0,0.00015512,2]
[394104596,1763285437815,-500.0,0.00015512,2]
[394104597,1763285437825,-500.0,0.00015512,2]
[394104598,1763285437835,-245.87876217,0.00015512,2]
[394104599,1763285437843,-500.0,0.00015512,2]
[394104600,1763285437852,-500.0,0.00015512,2]
[394104601,1763285437862,-500.0,0.00015512,2]
[394104602,1763285437871,-500.0,0.00015512,2]
[394104603,1763285437880,-500.0,0.00015512,2]
[394104604,1763285437889,-500.0,0.00015512,2]
[394104605,1763285437898,-500.0,0.00015512,2]
[394104606,1763285437907,-500.0,0.00015512,2]
[394104607,1763285437916,-500.0,0.00015512,2]
[394104608,1763285437925,-500.0,0.00015512,2]
[394104609,1763285437934,-500.0,0.00015512,2]
[394104610,1763285437944,-500.0,0.00015512,2]
[394104611,1763285437953,-500.0,0.00015512,2]
[394104612,1763285437962,-500.0,0.00015512,2]
[394104613,1763285437971,-452078.73277537,0.00015513,2]
[394104614,1763285437980,-160.0,0.00015603,2]
[394104615,1763285437989,-289.28844386,0.00015612,2]
[394104616,1763285437998,-5148.59025055,0.00015638,2]
[394104617,1763285438007,-300.0,0.00015837,2]
[394104618,1763285438017,-1200.0,0.00015837,2]
[394104619,1763285438026,-500.0,0.00016438,2]
[394104620,1763285438036,-500.0,0.00016438,2]
[394104621,1763285438045,-500.0,0.00016438,2]
[394104622,1763285438055,-500.0,0.00016438,2]
[394104623,1763285438064,-603.64825223,0.00016438,2]
[394104624,1763285438074,-500.0,0.00016438,2]
[394104625,1763285438083,-500.0,0.00016438,2]
[394104626,1763285438093,-594.72759433,0.00016438,2]
[394104627,1763285438103,-1663.64,0.00016438,2]
[394104629,1763285438112,-5148.59025049,0.00016656,2]
[394104631,1763285438121,-198.0,0.000168,2]
[394104633,1763285438130,-232.09627717,0.00016961,2]
[394104635,1763285438139,-160.0,0.00017,2]
[394104637,1763285438148,-170.44438333,0.00017063,2]
[394104639,1763285438157,-29561.0,0.00017123,2]
[394104641,1763285438167,-300.0,0.00017163,2]
[394104643,1763285438176,-300.0,0.00017163,2]
[394104645,1763285438186,-250.0,0.00017163,2]
[394104647,1763285438196,-300.0,0.00017163,2]
[394104649,1763285438205,-300.0,0.00017163,2]
[394104651,1763285438214,-420.0,0.00017318,2]
[394104653,1763285438224,-166.66,0.00017377,2]
[394104655,1763285438235,-1680.0,0.00017405,2]
[394104657,1763285438244,-250.0,0.00017673,2]
[394104659,1763285438254,-5148.59025049,0.00017674,2]
[394104661,1763285438264,-166.66,0.00017951,2]
[394104663,1763285438274,-239.98478964,0.00017973,2]
[394104665,1763285438284,-215.28634984,0.00017984,2]
[394104667,1763285438293,-170.44438333,0.00017986,2]
[394104669,1763285438303,-200.0,0.00017989,2]
[394104671,1763285438312,-151.0,0.00017989,2]
[394104673,1763285438321,-151.0,0.00017989,2]
[394104675,1763285438331,-151.0,0.00017989,2]
[394104677,1763285438340,-151.0,0.00017989,2]
[394104679,1763285438349,-151.0,0.00017989,2]
[394104681,1763285438359,-151.0,0.00017989,2]
[394104683,1763285438368,-151.0,0.00017989,2]
[394104685,1763285438378,-151.0,0.00017989,2]
[394104687,1763285438387,-151.0,0.00017989,2]
[394104689,1763285438396,-151.0,0.00017989,2]
[394104691,1763285438405,-151.0,0.00017989,2]
[394104693,1763285438414,-873.78870874,0.0001799,2]
[394104695,1763285438424,-300.0,0.00017999,2]
[394104697,1763285438434,-300.0,0.00017999,2]
[394104699,1763285438443,-374.55197999,0.00017999,2]
[394104701,1763285438453,-301.91775964,0.00017999,2]
[394104703,1763285438462,-500.0,0.00017999,2]
[394104705,1763285438472,-633.42734422,0.00017999,2]
[394104707,1763285438481,-2578854.55628528,0.00018,2]
[394104709,1763285438491,-174.29663277,0.00018086,2]
[394104711,1763285438500,-265.0,0.00018186,2]
[394104713,1763285438510,-265.0,0.00018249,2]
[394104715,1763285438520,-265.0,0.00018348,2]
[394104717,1763285438529,-265.0,0.00018398,2]
[394104719,1763285438539,-265.0,0.0001842,2]
[394104721,1763285438548,-265.0,0.00018431,2]
[394104723,1763285438557,-265.0,0.00018454,2]
[394104725,1763285438567,-409.07,0.00018487,2]
[394104727,1763285438576,-166.66,0.00018524,2]
[394104729,1763285438587,-215.28634984,0.00018543,2]
[394104731,1763285438597,-5148.59025049,0.00018692,2]
[394104733,1763285438606,-265.0,0.0001873,2]
[394104735,1763285438616,-150.39,0.000188,2]
[394104737,1763285438626,-150.39,0.000188,2]
[394104739,1763285438635,-150.39,0.000188,2]
[394104741,1763285438644,-150.39,0.000188,2]
[394104744,1763285438656,-150.39,0.000188,2]
[394104746,1763285438665,-150.39,0.000188,2]
[394104748,1763285438677,-150.39,0.000188,2]
[394104749,1763285438687,-150.39,0.000188,2]
[394104752,1763285438696,-150.39,0.000188,2]
[394104754,1763285438706,-150.39,0.000188,2]
[394104756,1763285438715,-150.39,0.000188,2]
[394104757,1763285438724,-150.39,0.000188,2]
[394104760,1763285438734,-150.39,0.000188,2]
[394104762,1763285438748,-150.39,0.000188,2]
[394104763,1763285438757,-150.39,0.000188,2]
[394104764,1763285438767,-150.39,0.000188,2]
[394104765,1763285438776,-150.39,0.000188,2]
[394104766,1763285438788,-150.39,0.000188,2]
[394104767,1763285438798,-150.39,0.000188,2]
[394104768,1763285438807,-150.39,0.000188,2]
[394104769,1763285438817,-150.39,0.000188,2]
[394104770,1763285438828,-150.39,0.000188,2]
[394104771,1763285438838,-150.39,0.000188,2]
[394104772,1763285438848,-150.39,0.000188,2]
[394104773,1763285438857,-265.0,0.0001888,2]
[394104774,1763285438867,-265.0,0.00018896,2]
[394104775,1763285438877,-163.11625529,0.00018931,2]
[394104776,1763285438887,-587.0,0.00018937,2]
[394104777,1763285438896,-265.0,0.00018943,2]
[394104778,1763285438906,-467.31894563,0.00019,2]
[394104779,1763285438916,-161.38293872,0.00019,2]
[394104780,1763285438925,-300.0,0.00019002,2]
[394104781,1763285438935,-26319.56,0.00019003,2]
[394104782,1763285438945,-166.66,0.00019004,2]
[394104783,1763285438955,-166.66,0.00019098,2]
[394104784,1763285438964,-215.28634984,0.00019103,2]
[394104785,1763285438974,-265.0,0.00019109,2]
[394104786,1763285438984,-2351.0,0.00019128,2]
[394104787,1763285438993,-151.0,0.00019178,2]
[394104788,1763285439003,-265.0,0.00019254,2]
[394104789,1763285439013,-150.82,0.00019284,2]
[394104790,1763285439187,-265.0,0.00019293,2]
[394104791,1763285439198,-265.0,0.00019299,2]
[394104792,1763285439209,-166.66,0.00019404,2]
[394104793,1763285439218,-265.0,0.00019474,2]
[394104794,1763285439227,-265.0,0.00019531,2]
[394104795,1763285439237,-265.0,0.00019566,2]
[394104796,1763285439247,-265.0,0.00019655,2]
[394104797,1763285439256,-215.28634984,0.00019663,2]
[394104798,1763285439266,-166.66,0.00019672,2]
[394104799,1763285439275,-265.0,0.00019677,2]
[394104800,1763285439284,-265.0,0.00019708,2]
[394104801,1763285439293,-5148.59025049,0.0001971,2]
[394104802,1763285439303,-156.587,0.00019726,2]
[394104803,1763285439312,-265.0,0.00019729,2]
[394104804,1763285439321,-265.0,0.00019767,2]
[394104805,1763285439331,-166.66,0.00019804,2]
[394104806,1763285439340,-265.0,0.00019899,2]
[394104807,1763285439349,-337.06854993,0.00019973,2]
[394104808,1763285439359,-150.39,0.00019973,2]
[394104809,1763285439368,-265.0,0.00019983,2]
[394104810,1763285439377,-150.39,0.0001999,2]
[394104811,1763285439386,-1030.70332689,0.0002,2]
[394104812,1763285439395,-1521.36545039,0.0002,2]
[394104813,1763285439404,-1453.4581391,0.0002,5]
[394104814,1763285439413,-61940.87519919,0.0002,5]
[394104815,1763285439422,-666.04107526,0.0002,2]
[394104816,1763285439436,-474.71000045,0.0002,2]
[394104817,1763285439463,-143.86083577,0.0002,2]
[394104818,1763285439473,-2185.00913448,0.0002,3]
[394104819,1763285439482,-1036.88633408,0.0002,2]
[394104820,1763285439490,-2841.49716656,0.0002,2]
[394104821,1763285439499,-510.98,0.00020009,2]
[394104822,1763285439508,-1000.0,0.00020108,2]
[394104823,1763285439517,-166.66,0.00020204,2]
[394104824,1763285439526,-215.50163619,0.00020222,2]
[394104825,1763285439536,-166.66,0.00020245,2]
[394104826,1763285439545,-162.380719,0.00020274,2]
[394104827,1763285439554,-1198.74422794,0.000205,2]
[394104828,1763285439564,-166.66,0.00020604,2]
[394104829,1763285439573,-174.29663274,0.00020668,2]
[394104830,1763285439582,-823.0,0.00020708,2]
[394104831,1763285439591,-2026.39698136,0.00020728,2]
[394104832,1763285439938,-3122.19326913,0.00020728,2]
[394104833,1763285439948,-168.3888056,0.00020822,2]
[394104834,1763285439956,-6353.55687192,0.00021,2]
[394104835,1763285439966,-9380.90860723,0.00021,2]
[394104836,1763285439976,-1183.54543186,0.00021,2]
[394104837,1763285439986,-195.36089215,0.00021,2]
[394104838,1763285439995,-166.66,0.00021005,2]
[394104839,1763285440005,-1599.0,0.00021006,2]
[394104840,1763285440014,-821.0,0.00021006,2]
[394104841,1763285440023,-916.507,0.00021006,2]
[394104842,1763285440032,-1279.431,0.00021006,2]
[394104843,1763285440041,-916.35,0.00021006,2]
[394104844,1763285440051,-1218.809,0.00021006,2]
[394104845,1763285440060,-160.159,0.00021006,2]
[394104846,1763285440069,-575.0,0.00021006,2]
[394104847,1763285440078,-1328.86,0.00021006,2]
[394104848,1763285440088,-718.722,0.00021006,2]
[394104849,1763285440097,-3292.0,0.00021022,2]
[394104850,1763285440106,-349.26,0.000211,7]
[394104851,1763285440115,-150.0,0.00021367,2]
[394104852,1763285440124,-174.61919141,0.0002137,2]